[Event "EYCC Open-U14 2019"]
[Site "Bratislava"]
[Date "2019.08.09"]
[Round "8.40"]
[White "Nareks, Matic"]
[Black "Hak, David"]
[Result "1-0"]
[ECO "C03"]
[WhiteElo "1937"]
[BlackElo "2012"]
[Annotator "NA"]
[PlyCount "117"]
[EventDate "2019.08.02"]
[EventType "swiss"]
[EventCountry "SVK"]
[SourceTitle "playchess.com"]
[Source "ChessBase"]
[SourceQuality "1"]
[TimeControl "40/5400+30:1800+30"]

1. e4 {[%emt 0:00:00]} e6 {[%emt 0:00:00]} 2. d4 {[%emt 0:00:00]} d5 {[%emt 0:00:00]} 3. Nd2 {[%emt 0:00:09]} a6 {[%emt 0:00:00]} 4. Ngf3 {[%emt 0:00:33]} c5 {[%emt 0:00:00]} 5. exd5 {[%emt 0:00:39]} exd5 {[%emt 0:00:00]} 6. Be2 {[%emt 0:00:39]} Nc6 {[%emt 0:01:30]} 7. O-O {[%emt 0:00:54]} Nf6 {[%emt 0:03:59]} 8. Re1 {[%emt 0:00:55]} Be7 {[%emt 0:03:42]} 9. dxc5 {[%emt 0:00:44]} O-O {[%emt 0:00:19]} 10. Nb3 {[%emt 0:01:54]} Ne4 {[%emt 0:07:45]} 11. Be3 {[%emt 0:04:34]} Be6 {[%emt 0:01:39]} 12. c3 {[%emt 0:04:53]} Rc8 {[%emt 0:08:00]} 13. Nfd4 {[%emt 0:20:26]} Ne5 {[%emt 0:09:47]} 14. Nxe6 {[%emt 0:09:34]} fxe6 {[%emt 0:00:09]} 15. Bd4 {[%emt 0:07:42]} Nd7 {[%emt 0:09:17]} 16. Bg4 {[%emt 0:00:46]} Rc6 {[%emt 0:19:12]} 17. f3 {[%emt 0:08:15]} Ng5 {[%emt 0:04:36]} 18. h4 {[%emt 0:06:47]} Nf7 {[%emt 0:00:37]} 19. Bxe6 {[%emt 0:00:50]} Bxh4 {[%emt 0:03:42]} 20. Bf2 {[%emt 0:04:00]} Bxf2+ {[%emt 0:03:39]} 21. Kxf2 {[%emt 0:00:07]} Nxc5 {[%emt 0:08:03]} 22. Bxd5 {[%emt 0:05:10]} Rd6 {[%emt 0:04:41]} 23. c4 {[%emt 0:00:12]} Qb6 {[%emt 0:01:44]} 24. Re3 {[%emt 0:02:05]} Rfd8 {[%emt 0:06:28]} 25. Qd4 {[%emt 0:01:05]} Nxb3 {[%emt 0:02:20]} 26. Qxb6 {[%emt 0:00:11]} Rxb6 {[%emt 0:00:19]} 27. Rxb3 {[%emt 0:00:01]} Rxb3 {[%emt 0:00:19]} 28. axb3 {[%emt 0:00:01]} Kf8 {[%emt 0:00:46]} 29. Re1 {[%emt 0:00:38]} b5 {[%emt 0:00:57]} 30. Ra1 {[%emt 0:01:09]} Rd6 {[%emt 0:00:37]} 31. Ke3 {[%emt 0:00:23]} Ne5 {[%emt 0:00:31]} 32. Kd4 {[%emt 0:00:37]} Nd7 {[%emt 0:00:22]} 33. c5 {[%emt 0:00:41]} Rg6 {[%emt 0:00:39]} 34. c6 {[%emt 0:00:30]} Nb8 {[%emt 0:00:28]} 35. c7 {[%emt 0:00:18]} Nc6+ {[%emt 0:00:05]} 36. Kc5 {[%emt 0:00:53]} Na7 {[%emt 0:00:25]} 37. Re1 {[%emt 0:00:37]} Rxg2 {[%emt 0:00:43]} 38. Kb6 {[%emt 0:00:22]} Nc8+ {[%emt 0:00:28]} 39. Kb7 {[%emt 0:00:08]} Nd6+ {[%emt 0:00:07]} 40. Kc6 {[%emt 0:00:00]} Nc8 {[%emt 0:00:00]} 41. Kd7 {[%emt 0:00:21]} Nb6+ {[%emt 0:01:06]} 42. Kd8 {[%emt 0:00:06]} g5 {[%emt 0:01:48]} 43. Re8+ {[%emt 0:00:40]} Kg7 {[%emt 0:00:06]} 44. Re7+ {[%emt 0:00:10]} Kf8 {[%emt 0:02:09]} 45. Rf7+ {[%emt 0:02:18]} Kg8 {[%emt 0:00:01]} 46. Rf6+ {[%emt 0:01:22]} Nxd5 {[%emt 0:00:54]} 47. c8=Q {[%emt 0:00:19]} Nxf6 {[%emt 0:00:44]} 48. Ke7+ {[%emt 0:00:09]} Kg7 {[%emt 0:00:16]} 49. Qf8+ {[%emt 0:00:12]} Kg6 {[%emt 0:00:04]} 50. Qxf6+ {[%emt 0:00:09]} Kh5 {[%emt 0:00:04]} 51. Qf7+ {[%emt 0:00:28]} Kh4 {[%emt 0:00:29]} 52. Qxh7+ {[%emt 0:00:06]} Kg3 {[%emt 0:00:04]} 53. Qf5 {[%emt 0:00:34]} Re2+ {[%emt 0:00:18]} 54. Kd6 {[%emt 0:00:12]} Re3 {[%emt 0:00:16]} 55. b4 {[%emt 0:00:33]} Rxf3 {[%emt 0:00:12]} 56. Qxg5+ {[%emt 0:00:07]} Kf2 {[%emt 0:00:09]} 57. Kc5 {[%emt 0:00:13]} Rb3 {[%emt 0:00:22]} 58. Kb6 {[%emt 0:00:21]} Rxb2 {[%emt 0:00:43]} 59. Qf6+ {[%emt 0:00:06]} 1-0

[Event "EYCC Open-U14 2019"]
[Site "Bratislava"]
[Date "2019.08.09"]
[Round "8.41"]
[White "Frank, Adam"]
[Black "Adamia, Jaba"]
[Result "1-0"]
[ECO "B43"]
[WhiteElo "2125"]
[BlackElo "1819"]
[Annotator "NA"]
[PlyCount "69"]
[EventDate "2019.08.02"]
[EventType "swiss"]
[EventCountry "SVK"]
[SourceTitle "playchess.com"]
[Source "ChessBase"]
[SourceQuality "1"]
[TimeControl "40/5400+30:1800+30"]

1. e4 {[%emt 0:00:00]} c5 {[%emt 0:00:00]} 2. Nf3 {[%emt 0:00:00]} e6 {[%emt 0:00:00]} 3. d4 {[%emt 0:00:00]} cxd4 {[%emt 0:00:00]} 4. Nxd4 {[%emt 0:00:00]} a6 {[%emt 0:00:00]} 5. Nc3 {[%emt 0:00:00]} Qc7 {[%emt 0:00:00]} 6. Bd3 {[%emt 0:00:00]} Nf6 {[%emt 0:00:02]} 7. f4 {[%emt 0:00:00]} d6 {[%emt 0:07:13]} 8. Qf3 g6 {[%emt 0:05:53]} 9. O-O {[%emt 0:08:03]} Bg7 {[%emt 0:00:57]} 10. Kh1 {[%emt 0:13:20]} O-O {[%emt 0:01:28]} 11. f5 {[%emt 0:06:19]} Nc6 {[%emt 0:32:05]} 12. Nxc6 {[%emt 0:06:27]} bxc6 {[%emt 0:04:14]} 13. Bg5 Rb8 {[%emt 0:02:20]} 14. e5 {[%emt 0:08:21]} dxe5 {[%emt 0:12:43]} 15. Bxf6 {[%emt 0:00:05]} Bxf6 {[%emt 0:01:13]} 16. Ne4 {[%emt 0:07:55]} exf5 {[%emt 0:00:58]} 17. Nxf6+ {[%emt 0:00:03]} Kg7 {[%emt 0:00:07]} 18. Nh5+ {[%emt 0:00:44]} gxh5 {[%emt 0:05:02]} 19. Bxf5 {[%emt 0:01:41]} Bxf5 {[%emt 0:00:59]} 20. Qxf5 {[%emt 0:00:04]} f6 {[%emt 0:00:53]} 21. b3 {[%emt 0:10:07]} Qf7 {[%emt 0:06:51]} 22. Rae1 {[%emt 0:03:44]} Rbd8 {[%emt 0:04:08]} 23. Re3 {[%emt 0:04:52]} Kh8 {[%emt 0:02:10]} 24. h3 {[%emt 0:04:36]} Qg6 {[%emt 0:02:16]} 25. Qf2 {[%emt 0:01:15]} Qh6 {[%emt 0:05:14]} 26. c4 {[%emt 0:08:55]} Rde8 {[%emt 0:02:05]} 27. Rfe1 {[%emt 0:02:58]} Re6 {[%emt 0:03:01]} 28. b4 {[%emt 0:10:33]} Rfe8 {[%emt 0:00:45]} 29. c5 {[%emt 0:00:35]} Qf8 {[%emt 0:01:08]} 30. Qb2 {[%emt 0:00:43]} Rb8 {[%emt 0:00:39]} 31. a3 {[%emt 0:00:23]} Qxc5 {[%emt 0:00:18]} 32. Qe2 {[%emt 0:00:20]} Qb5 {[%emt 0:00:42]} 33. Qxh5 {[%emt 0:00:05]} a5 {[%emt 0:00:33]} 34. Qf7 {[%emt 0:00:24]} Rbe8 {[%emt 0:00:31]} 35. Rg3 {[%emt 0:00:11]} 1-0

[Event "EYCC Open-U14 2019"]
[Site "Bratislava"]
[Date "2019.08.09"]
[Round "8.42"]
[White "Krivenko, Dion"]
[Black "Brnusak, Tomas"]
[Result "0-1"]
[ECO "B53"]
[WhiteElo "1700"]
[BlackElo "2032"]
[Annotator "NA"]
[PlyCount "100"]
[EventDate "2019.08.02"]
[EventType "swiss"]
[EventCountry "SVK"]
[SourceTitle "playchess.com"]
[Source "ChessBase"]
[SourceQuality "1"]
[TimeControl "40/5400+30:1800+30"]

1. e4 {[%emt 0:00:00]} c5 {[%emt 0:00:00]} 2. Nf3 {[%emt 0:00:00]} d6 {[%emt 0:00:39]} 3. d4 {[%emt 0:00:00]} cxd4 {[%emt 0:00:41]} 4. Qxd4 {[%emt 0:00:00]} Nc6 {[%emt 0:00:44]} 5. Bb5 {[%emt 0:01:02]} Bd7 {[%emt 0:00:55]} 6. Bxc6 {[%emt 0:00:16]} Bxc6 {[%emt 0:00:44]} 7. Nc3 {[%emt 0:00:06]} Nf6 {[%emt 0:00:48]} 8. Bg5 {[%emt 0:00:08]} e6 {[%emt 0:01:14]} 9. O-O-O {[%emt 0:00:44]} Be7 {[%emt 0:00:58]} 10. Rhe1 {[%emt 0:00:10]} O-O {[%emt 0:01:13]} 11. Qd3 {[%emt 0:02:32]} Qa5 {[%emt 0:01:31]} 12. Kb1 {[%emt 0:07:03]} Rfd8 {[%emt 0:02:13]} 13. Bd2 {[%emt 0:08:22]} Qc7 {[%emt 0:07:05]} 14. Bf4 {[%emt 0:10:50]} Rac8 {[%emt 0:06:07]} 15. Qe2 {[%emt 0:09:40]} a6 {[%emt 0:08:09]} 16. e5 {[%emt 0:07:26]} Nd5 {[%emt 0:01:16]} 17. Nxd5 {[%emt 0:02:45]} Bxd5 {[%emt 0:01:22]} 18. b3 {[%emt 0:05:20]} b5 {[%emt 0:03:25]} 19. h4 {[%emt 0:04:08]} Qc5 {[%emt 0:11:17]} 20. Be3 {[%emt 0:07:56]} Bxf3 {[%emt 0:01:19]} 21. gxf3 {[%emt 0:00:13]} Qxe5 {[%emt 0:00:44]} 22. f4 {[%emt 0:06:06]} Qf5 {[%emt 0:03:32]} 23. h5 {[%emt 0:05:45]} Bf6 {[%emt 0:03:05]} 24. Qd3 {[%emt 0:05:36]} Qxh5 {[%emt 0:09:06]} 25. Rh1 {[%emt 0:01:16]} Qf5 {[%emt 0:00:09]} 26. Qxf5 {[%emt 0:04:22]} exf5 {[%emt 0:00:06]} 27. Rd5 {[%emt 0:00:34]} g6 {[%emt 0:00:17]} 28. Rhd1 {[%emt 0:00:52]} Rc6 {[%emt 0:01:17]} 29. Kc1 {[%emt 0:02:06]} Rdc8 {[%emt 0:00:51]} 30. R1d2 {[%emt 0:02:56]} Bc3 {[%emt 0:00:31]} 31. Re2 {[%emt 0:00:01]} h5 {[%emt 0:01:23]} 32. Kd1 {[%emt 0:02:18]} Re8 {[%emt 0:02:19]} 33. Bd2 {[%emt 0:03:24]} Rxe2 {[%emt 0:00:13]} 34. Kxe2 {[%emt 0:00:01]} Bxd2 {[%emt 0:00:10]} 35. Kxd2 {[%emt 0:00:31]} Kf8 {[%emt 0:00:24]} 36. c3 {[%emt 0:02:01]} Ke7 {[%emt 0:00:07]} 37. Rd3 {[%emt 0:00:12]} f6 {[%emt 0:00:28]} 38. Rg3 {[%emt 0:01:17]} Kf7 {[%emt 0:00:06]} 39. Rh3 {[%emt 0:00:19]} Kg7 {[%emt 0:00:46]} 40. Kd3 {[%emt 0:00:00]} Kh6 {[%emt 0:00:00]} 41. Kd4 {[%emt 0:01:16]} Rc5 {[%emt 0:00:47]} 42. Re3 {[%emt 0:00:33]} h4 {[%emt 0:01:31]} 43. Re6 {[%emt 0:00:36]} Rc6 {[%emt 0:00:46]} 44. a3 {[%emt 0:02:31]} Kh5 {[%emt 0:01:24]} 45. f3 {[%emt 0:00:20]} Rc7 {[%emt 0:02:52]} 46. c4 {[%emt 0:01:16]} bxc4 {[%emt 0:00:46]} 47. bxc4 {[%emt 0:00:59]} h3 {[%emt 0:00:06]} 48. Re1 {[%emt 0:01:59]} Kh4 {[%emt 0:00:11]} 49. Rg1 {[%emt 0:00:18]} h2 {[%emt 0:00:19]} 50. Rxg6 {[%emt 0:00:08]} Rh7 {[%emt 0:00:06]} 0-1

[Event "EYCC Open-U14 2019"]
[Site "Bratislava"]
[Date "2019.08.09"]
[Round "8.43"]
[White "Schlegel, Igor"]
[Black "Bansal, Saahil"]
[Result "1/2-1/2"]
[ECO "C13"]
[WhiteElo "1968"]
[BlackElo "1547"]
[Annotator "NA"]
[PlyCount "62"]
[EventDate "2019.08.02"]
[EventType "swiss"]
[EventCountry "SVK"]
[SourceTitle "playchess.com"]
[Source "ChessBase"]
[SourceQuality "1"]
[TimeControl "40/5400+30:1800+30"]

1. e4 {[%emt 0:00:00]} e6 {[%emt 0:00:00]} 2. d4 {[%emt 0:00:00]} d5 {[%emt 0:00:00]} 3. Nc3 {[%emt 0:00:00]} Nf6 {[%emt 0:00:43]} 4. Bg5 {[%emt 0:00:04]} Be7 {[%emt 0:01:43]} 5. e5 {[%emt 0:00:07]} Nfd7 {[%emt 0:00:27]} 6. h4 {[%emt 0:00:05]} Bxg5 {[%emt 0:03:03]} 7. hxg5 {[%emt 0:00:05]} Qxg5 {[%emt 0:00:25]} 8. Qd3 {[%emt 0:00:32]} g6 {[%emt 0:04:56]} 9. Nf3 {[%emt 0:00:46]} Qe7 {[%emt 0:04:17]} 10. O-O-O {[%emt 0:03:23]} Nc6 {[%emt 0:02:58]} 11. Qe3 {[%emt 0:00:59]} Nb6 {[%emt 0:19:01]} 12. Rh6 {[%emt 0:04:17]} Bd7 {[%emt 0:22:02]} 13. Bd3 {[%emt 0:01:32]} O-O-O {[%emt 0:01:09]} 14. Rdh1 {[%emt 0:00:25]} Nc4 {[%emt 0:03:31]} 15. Bxc4 {[%emt 0:14:24]} dxc4 {[%emt 0:00:18]} 16. Rxh7 {[%emt 0:01:44]} Rxh7 {[%emt 0:00:20]} 17. Rxh7 {[%emt 0:00:05]} Be8 {[%emt 0:03:20]} 18. Ne4 {[%emt 0:14:44]} Nb4 {[%emt 0:10:35]} 19. Qa3 {[%emt 0:08:24]} Bc6 {[%emt 0:04:41]} 20. Nf6 {[%emt 0:14:54]} Bxf3 {[%emt 0:05:15]} 21. gxf3 {[%emt 0:24:33]} a6 {[%emt 0:02:44]} 22. Rh4 {[%emt 0:04:36]} c3 {[%emt 0:01:45]} 23. Kb1 {[%emt 0:02:12]} cxb2 {[%emt 0:00:34]} 24. c3 {[%emt 0:00:17]} Nd5 {[%emt 0:00:47]} 25. Qxe7 {[%emt 0:00:02]} Nxe7 {[%emt 0:00:08]} 26. Rh7 {[%emt 0:00:17]} Rf8 {[%emt 0:00:29]} 27. Kxb2 {[%emt 0:02:02]} Nd5 {[%emt 0:02:56]} 28. Ne4 {[%emt 0:00:53]} Kd7 {[%emt 0:01:59]} 29. c4 {[%emt 0:00:36]} Nf4 {[%emt 0:01:28]} 30. Kc3 {[%emt 0:00:36]} Ne2+ {[%emt 0:00:33]} 31. Kd3 {[%emt 0:00:08]} Nc1+ {[%emt 0:00:11]} 1/2-1/2

[Event "EYCC Open-U14 2019"]
[Site "Bratislava"]
[Date "2019.08.09"]
[Round "8.44"]
[White "Olde, Karl Erik"]
[Black "Indriunas, Matas"]
[Result "0-1"]
[ECO "A40"]
[WhiteElo "1516"]
[BlackElo "1960"]
[Annotator "NA"]
[PlyCount "161"]
[EventDate "2019.08.02"]
[EventType "swiss"]
[EventCountry "SVK"]
[SourceTitle "playchess.com"]
[Source "ChessBase"]
[SourceQuality "1"]
[TimeControl "40/5400+30:1800+30"]

1. d4 {[%emt 0:00:00]} g6 {[%emt 0:00:00]} 2. c4 {[%emt 0:00:04]} Bg7 {[%emt 0:00:00]} 3. Nf3 {[%emt 0:00:17]} d6 {[%emt 0:00:12]} 4. g3 {[%emt 0:01:00]} Nd7 {[%emt 0:00:23]} 5. Bg2 {[%emt 0:01:07]} e5 {[%emt 0:00:30]} 6. e4 {[%emt 0:01:17]} Ne7 {[%emt 0:00:34]} 7. Nc3 {[%emt 0:01:59]} O-O {[%emt 0:00:59]} 8. O-O {[%emt 0:00:08]} h6 {[%emt 0:04:40]} 9. Be3 {[%emt 0:05:24]} exd4 {[%emt 0:01:56]} 10. Bxd4 {[%emt 0:01:12]} Nc6 {[%emt 0:11:49]} 11. Bxg7 {[%emt 0:02:29]} Kxg7 {[%emt 0:00:06]} 12. Nd5 {[%emt 0:00:33]} Nc5 {[%emt 0:07:09]} 13. Qc2 {[%emt 0:04:46]} Ne5 {[%emt 0:11:58]} 14. Nxe5 {[%emt 0:01:43]} dxe5 {[%emt 0:00:06]} 15. Rad1 {[%emt 0:04:31]} c6 {[%emt 0:05:46]} 16. Ne3 {[%emt 0:06:24]} Qb6 {[%emt 0:20:04]} 17. Qc3 {[%emt 0:06:32]} f6 {[%emt 0:00:39]} 18. b4 {[%emt 0:02:36]} Ne6 {[%emt 0:01:27]} 19. c5 {[%emt 0:02:09]} Qc7 {[%emt 0:01:37]} 20. Rd2 {[%emt 0:05:02]} Nd4 {[%emt 0:08:45]} 21. Nc2 {[%emt 0:01:52]} Nb5 {[%emt 0:02:32]} 22. Qe3 {[%emt 0:01:05]} Qe7 {[%emt 0:00:18]} 23. Rfd1 {[%emt 0:02:08]} a5 {[%emt 0:00:48]} 24. Bf1 {[%emt 0:03:04]} Nc7 {[%emt 0:01:07]} 25. Bc4 {[%emt 0:02:02]} axb4 {[%emt 0:02:18]} 26. Nxb4 {[%emt 0:00:10]} Ra5 {[%emt 0:00:41]} 27. Nd3 {[%emt 0:06:15]} Ne6 {[%emt 0:01:45]} 28. Bxe6 {[%emt 0:01:49]} Bxe6 {[%emt 0:00:06]} 29. Rb2 {[%emt 0:04:58]} Rfa8 {[%emt 0:04:16]} 30. Rdb1 {[%emt 0:01:00]} R8a7 {[%emt 0:00:12]} 31. Nc1 {[%emt 0:00:45]} Rxc5 {[%emt 0:00:53]} 32. Nb3 {[%emt 0:01:24]} Bxb3 {[%emt 0:00:42]} 33. axb3 {[%emt 0:02:22]} Rca5 {[%emt 0:01:49]} 34. Rd2 {[%emt 0:01:17]} b5 {[%emt 0:01:07]} 35. Rc1 {[%emt 0:03:25]} Ra1 {[%emt 0:00:31]} 36. Rdc2 {[%emt 0:00:21]} Rxc1+ {[%emt 0:00:50]} 37. Rxc1 {[%emt 0:00:03]} Rc7 {[%emt 0:01:04]} 38. Rc5 {[%emt 0:00:28]} Qd6 {[%emt 0:00:45]} 39. Qc1 {[%emt 0:01:06]} g5 {[%emt 0:02:47]} 40. b4 {[%emt 0:00:00]} Kf7 {[%emt 0:00:00]} 41. Qc2 {[%emt 0:02:48]} Ke7 {[%emt 0:05:50]} 42. Rc3 {[%emt 0:08:06]} Qxb4 {[%emt 0:06:35]} 43. Rxc6 {[%emt 0:00:17]} Rxc6 {[%emt 0:01:07]} 44. Qxc6 {[%emt 0:00:03]} Qc4 {[%emt 0:03:24]} 45. Qb6 {[%emt 0:03:53]} b4 {[%emt 0:02:34]} 46. Qb7+ {[%emt 0:00:13]} Ke6 {[%emt 0:00:31]} 47. Qb6+ {[%emt 0:01:17]} Kf7 {[%emt 0:00:55]} 48. Qb7+ {[%emt 0:01:48]} Kg6 {[%emt 0:00:35]} 49. Qd7 {[%emt 0:01:27]} b3 {[%emt 0:07:50]} 50. Qf5+ {[%emt 0:00:47]} Kg7 {[%emt 0:00:17]} 51. Qd7+ {[%emt 0:00:13]} Qf7 {[%emt 0:00:33]} 52. Qb5 {[%emt 0:00:12]} Qe6 {[%emt 0:00:27]} 53. Qb7+ {[%emt 0:01:39]} Kg6 {[%emt 0:01:18]} 54. Qb5 {[%emt 0:02:26]} g4 {[%emt 0:01:14]} 55. Kf1 {[%emt 0:02:06]} f5 {[%emt 0:01:55]} 56. exf5+ {[%emt 0:01:43]} Kxf5 {[%emt 0:00:13]} 57. Ke2 {[%emt 0:01:03]} Kf6 {[%emt 0:01:15]} 58. Kd2 {[%emt 0:05:37]} Qf5 {[%emt 0:03:06]} 59. Qb6+ {[%emt 0:01:48]} Kg5 {[%emt 0:01:01]} 60. Qe3+ {[%emt 0:11:13]} Kh5 {[%emt 0:00:25]} 61. Qxb3 {[%emt 0:00:16]} Qxf2+ {[%emt 0:00:21]} 62. Kc1 {[%emt 0:01:01]} Qg1+ {[%emt 0:01:04]} 63. Kb2 {[%emt 0:01:05]} Qxh2+ {[%emt 0:00:12]} 64. Ka3 {[%emt 0:00:06]} Qf2 {[%emt 0:00:40]} 65. Qd5 {[%emt 0:00:52]} Qxg3+ {[%emt 0:00:37]} 66. Kb4 {[%emt 0:00:22]} Qf4+ {[%emt 0:00:33]} 67. Kb5 {[%emt 0:00:06]} g3 {[%emt 0:02:10]} 68. Kc6 {[%emt 0:00:43]} Kg4 {[%emt 0:00:47]} 69. Qe6+ {[%emt 0:00:46]} Kf3 {[%emt 0:00:21]} 70. Qb3+ {[%emt 0:00:14]} Kg2 {[%emt 0:00:45]} 71. Qc2+ {[%emt 0:00:07]} Qf2 {[%emt 0:00:22]} 72. Qg6 {[%emt 0:00:08]} Qf4 {[%emt 0:00:35]} 73. Qc2+ {[%emt 0:00:06]} Kh3 {[%emt 0:00:11]} 74. Qg6 {[%emt 0:00:06]} g2 {[%emt 0:00:16]} 75. Qh5+ {[%emt 0:00:21]} Kg3 {[%emt 0:00:06]} 76. Qg6+ {[%emt 0:00:15]} Qg4 {[%emt 0:00:48]} 77. Qb1 {[%emt 0:00:04]} Kh2 {[%emt 0:00:12]} 78. Qe1 {[%emt 0:00:08]} g1=Q {[%emt 0:00:16]} 79. Qxe5+ {[%emt 0:00:03]} Q1g3 {[%emt 0:00:07]} 80. Qf6 {[%emt 0:00:30]} Q3f3+ {[%emt 0:00:08]} 81. Kc7 {[%emt 0:00:20]} 0-1

[Event "EYCC Open-U14 2019"]
[Site "Bratislava"]
[Date "2019.08.09"]
[Round "8.45"]
[White "Velkoski, Stojan"]
[Black "Zemach, Nadav"]
[Result "0-1"]
[ECO "C54"]
[WhiteElo "1389"]
[BlackElo "1997"]
[Annotator "NA"]
[PlyCount "76"]
[EventDate "2019.08.02"]
[EventType "swiss"]
[EventCountry "SVK"]
[SourceTitle "playchess.com"]
[Source "ChessBase"]
[SourceQuality "1"]
[TimeControl "40/5400+30:1800+30"]

1. e4 {[%emt 0:00:00]} e5 {[%emt 0:00:00]} 2. Nf3 {[%emt 0:00:00]} Nc6 {[%emt 0:00:00]} 3. Bc4 {[%emt 0:00:00]} Bc5 {[%emt 0:00:00]} 4. c3 {[%emt 0:00:00]} Nf6 {[%emt 0:00:00]} 5. d3 {[%emt 0:00:00]} O-O {[%emt 0:00:00]} 6. Nbd2 {[%emt 0:00:00]} d5 {[%emt 0:00:50]} 7. exd5 {[%emt 0:00:06]} Nxd5 {[%emt 0:00:03]} 8. Ne4 {[%emt 0:00:10]} Bb6 {[%emt 0:04:10]} 9. O-O {[%emt 0:00:16]} a5 {[%emt 0:05:55]} 10. Re1 {[%emt 0:01:52]} Kh8 {[%emt 0:10:17]} 11. Ng3 {[%emt 0:02:27]} f6 12. Be3 {[%emt 0:00:06]} Nxe3 {[%emt 0:11:20]} 13. fxe3 {[%emt 0:04:23]} f5 {[%emt 0:06:36]} 14. d4 e4 15. Nd2 {[%emt 0:01:12]} Ne7 {[%emt 0:02:24]} 16. Bb3 {[%emt 0:06:06]} c6 {[%emt 0:01:23]} 17. Ne2 {[%emt 0:20:15]} Ng6 18. g3 Bc7 {[%emt 0:12:29]} 19. Nf4 {[%emt 0:04:28]} Qg5 {[%emt 0:01:22]} 20. Kh1 {[%emt 0:01:18]} Bd7 {[%emt 0:03:32]} 21. d5 {[%emt 0:12:24]} Nxf4 {[%emt 0:06:04]} 22. exf4 {[%emt 0:00:37]} Qf6 {[%emt 0:00:37]} 23. Nc4 {[%emt 0:15:05]} cxd5 {[%emt 0:01:22]} 24. Ne3 {[%emt 0:00:24]} Bc6 {[%emt 0:02:06]} 25. Nxd5 {[%emt 0:03:49]} Qd6 {[%emt 0:02:02]} 26. Nxc7 {[%emt 0:03:26]} Qxc7 {[%emt 0:00:03]} 27. Re3 {[%emt 0:02:11]} a4 {[%emt 0:05:26]} 28. Bc4 {[%emt 0:03:03]} Qb6 {[%emt 0:01:33]} 29. Qe2 {[%emt 0:00:44]} Rad8 {[%emt 0:00:12]} 30. Qf2 {[%emt 0:03:43]} Rd6 {[%emt 0:02:28]} 31. b4 {[%emt 0:01:19]} axb3 {[%emt 0:06:40]} 32. axb3 {[%emt 0:00:09]} Rfd8 {[%emt 0:00:05]} 33. Kg1 {[%emt 0:00:41]} Bb5 {[%emt 0:04:56]} 34. Bxb5 {[%emt 0:02:25]} Qxb5 {[%emt 0:00:01]} 35. c4 {[%emt 0:01:10]} Qb4 {[%emt 0:01:48]} 36. Rae1 {[%emt 0:01:27]} Rd3 {[%emt 0:01:33]} 37. Qa2 {[%emt 0:03:08]} Rxe3 {[%emt 0:00:43]} 38. Rxe3 {[%emt 0:00:10]} Rd1+ {[%emt 0:00:09]} 0-1

[Event "EYCC Open-U14 2019"]
[Site "Bratislava"]
[Date "2019.08.09"]
[Round "8.46"]
[White "Martinez Soriano, Javier"]
[Black "Bizjak, Anej"]
[Result "0-1"]
[ECO "C00"]
[WhiteElo "1992"]
[BlackElo "1574"]
[Annotator "NA"]
[PlyCount "76"]
[EventDate "2019.08.02"]
[EventType "swiss"]
[EventCountry "SVK"]
[SourceTitle "playchess.com"]
[Source "ChessBase"]
[SourceQuality "1"]
[TimeControl "40/5400+30:1800+30"]

1. e4 {[%emt 0:00:00]} e6 {[%emt 0:00:00]} 2. d3 {[%emt 0:00:00]} b6 {[%emt 0:00:04]} 3. Nc3 {[%emt 0:00:24]} Bb7 {[%emt 0:00:11]} 4. Nf3 {[%emt 0:01:12]} Nf6 {[%emt 0:01:13]} 5. g3 {[%emt 0:01:13]} Be7 {[%emt 0:00:37]} 6. Bg2 {[%emt 0:00:21]} O-O {[%emt 0:00:54]} 7. O-O {[%emt 0:00:24]} d6 8. Ne1 {[%emt 0:00:55]} Ne8 {[%emt 0:02:30]} 9. f4 {[%emt 0:01:50]} f5 {[%emt 0:00:22]} 10. Qe2 {[%emt 0:00:36]} Kh8 {[%emt 0:00:37]} 11. Nf3 {[%emt 0:03:01]} Nd7 {[%emt 0:00:59]} 12. Nd4 {[%emt 0:01:22]} Rf6 {[%emt 0:01:16]} 13. e5 {[%emt 0:01:44]} dxe5 {[%emt 0:04:20]} 14. Bxb7 {[%emt 0:01:13]} exd4 {[%emt 0:00:16]} 15. Bxa8 {[%emt 0:00:14]} Qxa8 {[%emt 0:00:54]} 16. Nd1 {[%emt 0:00:15]} c5 {[%emt 0:00:57]} 17. Bd2 {[%emt 0:02:11]} Nc7 {[%emt 0:00:09]} 18. c3 {[%emt 0:01:48]} Rg6 {[%emt 0:00:21]} 19. Qg2 {[%emt 0:02:43]} Qb8 {[%emt 0:01:43]} 20. cxd4 {[%emt 0:02:11]} cxd4 {[%emt 0:00:53]} 21. Qc6 {[%emt 0:03:03]} Nf6 {[%emt 0:00:04]} 22. Rc1 {[%emt 0:01:10]} Nfd5 {[%emt 0:00:11]} 23. Qc4 {[%emt 0:01:53]} Bf6 {[%emt 0:02:44]} 24. a3 {[%emt 0:01:54]} h5 {[%emt 0:01:06]} 25. Qc6 {[%emt 0:07:20]} h4 {[%emt 0:01:05]} 26. Kg2 {[%emt 0:00:49]} Kh7 {[%emt 0:02:35]} 27. b4 {[%emt 0:05:13]} Be7 {[%emt 0:00:42]} 28. Qc4 {[%emt 0:00:46]} Bf6 {[%emt 0:01:39]} 29. a4 {[%emt 0:04:05]} e5 {[%emt 0:00:52]} 30. fxe5 {[%emt 0:01:10]} Bxe5 {[%emt 0:00:07]} 31. Rxf5 {[%emt 0:00:41]} Qa8 {[%emt 0:01:01]} 32. Rh5+ {[%emt 0:01:20]} Rh6 {[%emt 0:00:04]} 33. Rxh6+ {[%emt 0:00:15]} gxh6 {[%emt 0:00:05]} 34. Qc6 {[%emt 0:00:14]} Qf8 {[%emt 0:01:55]} 35. Qd7+ {[%emt 0:01:06]} Kh8 {[%emt 0:00:20]} 36. Rc6 {[%emt 0:02:13]} Nf6 {[%emt 0:04:29]} 37. Rxc7 {[%emt 0:00:30]} Nxd7 {[%emt 0:00:31]} 38. Rxd7 {[%emt 0:00:24]} h3+ {[%emt 0:00:37]} 0-1

[Event "EYCC Open-U14 2019"]
[Site "Bratislava"]
[Date "2019.08.09"]
[Round "8.48"]
[White "Paduano, Claudio"]
[Black "Zvezdakoski Matej"]
[Result "1-0"]
[ECO "D63"]
[WhiteElo "2037"]
[BlackElo "1811"]
[Annotator "NA"]
[PlyCount "53"]
[EventDate "2019.08.02"]
[EventType "swiss"]
[EventCountry "SVK"]
[SourceTitle "playchess.com"]
[Source "ChessBase"]
[SourceQuality "1"]
[TimeControl "40/5400+30:1800+30"]

1. d4 {[%emt 0:01:14]} Nf6 {[%emt 0:00:00]} 2. c4 {[%emt 0:00:14]} e6 {[%emt 0:00:00]} 3. Nf3 {[%emt 0:00:25]} d5 {[%emt 0:00:00]} 4. Nc3 {[%emt 0:00:21]} Be7 {[%emt 0:00:00]} 5. Bg5 {[%emt 0:00:34]} O-O {[%emt 0:00:09]} 6. e3 {[%emt 0:01:16]} Nbd7 {[%emt 0:00:33]} 7. Rc1 {[%emt 0:02:46]} a6 {[%emt 0:01:11]} 8. cxd5 {[%emt 0:08:53]} exd5 {[%emt 0:00:57]} 9. Bd3 {[%emt 0:16:53]} Re8 {[%emt 0:02:08]} 10. Qc2 {[%emt 0:13:19]} Nf8 {[%emt 0:00:30]} 11. O-O {[%emt 0:03:41]} c6 {[%emt 0:00:26]} 12. Rce1 {[%emt 0:22:40]} Ne4 {[%emt 0:01:20]} 13. Bxe7 {[%emt 0:01:38]} Qxe7 {[%emt 0:00:26]} 14. Bxe4 {[%emt 0:02:12]} dxe4 {[%emt 0:00:19]} 15. Nd2 {[%emt 0:02:20]} f5 {[%emt 0:02:07]} 16. f3 {[%emt 0:04:14]} exf3 {[%emt 0:01:09]} 17. Nxf3 {[%emt 0:03:18]} Ng6 {[%emt 0:02:57]} 18. e4 {[%emt 0:09:01]} fxe4 {[%emt 0:02:52]} 19. Rxe4 {[%emt 0:03:41]} Qd8 {[%emt 0:01:18]} 20. Qb3+ {[%emt 0:00:48]} Kh8 {[%emt 0:00:14]} 21. Ng5 {[%emt 0:00:31]} Be6 {[%emt 0:04:47]} 22. Nxe6 {[%emt 0:00:28]} Qd6 {[%emt 0:00:54]} 23. Ng5 {[%emt 0:00:31]} Rf8 {[%emt 0:00:47]} 24. Rxf8+ {[%emt 0:00:29]} Rxf8 {[%emt 0:00:01]} 25. Nf7+ {[%emt 0:00:30]} Rxf7 {[%emt 0:00:11]} 26. Qxf7 {[%emt 0:00:29]} h6 {[%emt 0:00:05]} 27. Re8+ 1-0